bitfinex-derivatives/quotes_BTCF0:USTF0_20250121
["timestamp","ask_amount","ask_price","bid_price","bid_amount"]
[1737422719106,0.1150323,101610.0,101600.0,1.2235254]
[1737422719298,0.1150323,101610.0,101600.0,0.8627254]
[1737422721001,0.1150323,101610.0,101600.0,1.2235254]
[1737422721411,0.4758323,101610.0,101600.0,0.8627254]
[1737422721606,0.1150323,101610.0,101600.0,0.82731633]
[1737422721802,0.17380331,101610.0,101600.0,0.82731633]
[1737422722111,0.17380331,101610.0,101600.0,0.06459093]
[1737422722500,0.54562587,101610.0,101600.0,0.06459093]
[1737422723404,0.039422,101600.0,101590.0,0.3608]
[1737422725100,0.039422,101600.0,101580.0,0.36089188]
[1737422725302,0.039426,101590.0,101580.0,0.36089188]
[1737422725501,0.039426,101590.0,101580.0,9.188e-05]
[1737422725502,0.17381131,101590.0,101580.0,9.188e-05]
[1737422725709,0.17381131,101590.0,101580.0,0.36089188]
[1737422726212,0.13438531,101590.0,101570.0,0.4118]
[1737422726400,0.13438531,101590.0,101570.0,0.40869525]
[1737422726605,0.03943,101580.0,101570.0,0.40869525]
[1737422727204,1.539434,101570.0,101560.0,0.3608]
[1737422727406,0.17381931,101570.0,101560.0,0.1832929]
[1737422728311,0.13438531,101570.0,101550.0,0.17177998]
[1737422728507,0.039438,101560.0,101550.0,0.53257998]
[1737422729103,0.65328406,101570.0,101550.0,0.53257998]
[1737422729306,0.69272006,101570.0,101560.0,0.3608]
[1737422729610,0.69272006,101570.0,101550.0,0.3254643]
[1737422729810,0.039438,101560.0,101550.0,0.1904]
[1737422730006,0.7216,101560.0,101520.0,0.1965]
[1737422730218,0.17383431,101530.0,101520.0,0.1965]
[1737422730409,0.17383431,101530.0,101520.0,0.22116287]
[1737422730605,0.039449,101530.0,101520.0,0.22116287]
[1737422730913,0.17383431,101530.0,101520.0,0.01408153]
[1737422731706,0.13438531,101530.0,101510.0,0.20338889]
[1737422731909,2.03463431,101540.0,101510.0,0.56418889]
[1737422732116,0.039449,101540.0,101530.0,0.3608]
[1737422732314,0.13438531,101550.0,101530.0,0.3608]
[1737422732611,0.65476229,101560.0,101520.0,0.3608]
[1737422732809,0.039442,101550.0,101540.0,0.3608]
[1737422733013,0.53441137,101560.0,101540.0,0.36076]
[1737422733319,0.039435,101570.0,101550.0,0.400242]
[1737422733517,0.039435,101570.0,101560.0,0.3608]
[1737422733815,0.0537944,101570.0,101560.0,0.3608]
[1737422734520,0.0537944,101570.0,101560.0,0.36074334]
[1737422735011,0.05373758,101590.0,101570.0,0.039428]
[1737422735207,0.039423,101590.0,101580.0,0.5661]
[1737422735408,0.17380831,101590.0,101570.0,0.3608]
[1737422735713,0.03943,101570.0,101560.0,0.5661]
[1737422736903,0.17381531,101570.0,101560.0,0.5661]
[1737422737211,0.039442,101540.0,101530.0,0.40073457]
[1737422737417,0.039442,101540.0,101530.0,0.59603457]
[1737422738113,0.039442,101540.0,101530.0,0.79983457]
[1737422738619,0.039442,101540.0,101530.0,0.3991]
[1737422738916,0.039442,101540.0,101530.0,0.2038]
[1737422739520,1.539442,101540.0,101530.0,0.2038]
[1737422739912,0.039446,101530.0,101520.0,0.3608]
[1737422740318,1.539446,101530.0,101520.0,0.3608]
[1737422740719,0.039446,101530.0,101520.0,0.3608]
[1737422740916,0.23983583,101570.0,101530.0,0.039444]
[1737422741111,0.039434,101560.0,101550.0,0.3608]
[1737422741609,0.20040583,101570.0,101550.0,0.3608]
[1737422741805,0.20040583,101570.0,101550.0,0.59375919]
[1737422741806,0.039434,101560.0,101550.0,0.59375919]
[1737422742013,0.039434,101560.0,101550.0,0.23295919]
[1737422742210,0.039434,101560.0,101550.0,0.02465919]
[1737422742607,0.039434,101560.0,101530.0,0.3608]
[1737422742814,0.400234,101560.0,101520.0,0.608549]
[1737422743023,0.039442,101540.0,101530.0,0.02465969]
[1737422743224,0.400242,101540.0,101530.0,0.02465969]
[1737422744314,0.13438531,101530.0,101510.0,0.56558889]
[1737422744525,0.03945,101520.0,101510.0,8.889e-05]
[1737422745628,0.039453,101510.0,101500.0,0.1]
[1737422745922,0.53463831,101510.0,101500.0,0.1]
[1737422746415,0.039463,101490.0,101470.0,0.3608]
[1737422746723,0.039463,101490.0,101480.0,0.3608]
[1737422747722,0.039463,101490.0,101470.0,0.400269]
[1737422748325,0.039463,101490.0,101480.0,0.3608]
[1737422748622,0.039463,101490.0,101480.0,0.400265]
[1737422748921,0.039463,101490.0,101470.0,0.039469]
[1737422749112,0.400263,101490.0,101470.0,0.400269]
[1737422749315,0.05370486,101500.0,101470.0,0.3608]
[1737422749517,0.400254,101510.0,101490.0,0.039461]
[1737422750224,0.039459,101500.0,101480.0,0.595765]
[1737422750522,0.039461,101490.0,101480.0,0.595765]
[1737422751224,0.23986683,101490.0,101480.0,0.595765]
[1737422751424,0.20040583,101490.0,101480.0,0.595765]
[1737422751733,0.20040583,101490.0,101480.0,0.234965]
[1737422752824,0.3162495,101490.0,101480.0,0.1955]
[1737422753125,0.6770495,101490.0,101480.0,0.1955]
[1737422753327,0.6770495,101490.0,101470.0,0.3608]
[1737422753625,0.039467,101480.0,101460.0,0.429671]
[1737422753925,0.039469,101470.0,101460.0,0.429671]
[1737422754231,0.039477,101450.0,101440.0,4.4e-07]
[1737422754419,0.039492,101410.0,101400.0,0.1]
[1737422754619,0.039492,101410.0,101400.0,0.4608]
[1737422754817,0.44581322,101420.0,101400.0,0.52498176]
[1737422755120,0.44581322,101420.0,101400.0,0.12468676]
[1737422755121,0.47667467,101410.0,101400.0,0.12468676]
[1737422755722,0.53516867,101410.0,101400.0,0.12468676]
[1737422756117,0.039516,101350.0,101340.0,0.41080165]
[1737422756321,0.400407,101350.0,101340.0,0.41080165]
[1737422756528,1.900407,101350.0,101340.0,0.41080165]
[1737422756917,1.900316,101350.0,101340.0,0.4416877]
[1737422757319,1.5,101350.0,101340.0,0.8024877]
[1737422757526,8.05e-05,101350.0,101340.0,0.81111965]
[1737422757839,0.13487667,101370.0,101350.0,0.039513]
[1737422758021,0.17438467,101370.0,101350.0,0.400313]
[1737422758330,0.17438467,101370.0,101350.0,0.3608]
[1737422759226,0.13487667,101370.0,101350.0,0.3608]
[1737422759436,0.14476809,101360.0,101350.0,0.3608]
[1737422759633,0.18428009,101360.0,101350.0,0.3608]
[1737422760024,0.14476809,101360.0,101340.0,0.19848444]
[1737422760224,0.039516,101350.0,101340.0,0.19848444]
[1737422760629,0.039516,101350.0,101340.0,8.444e-05]
[1737422760823,0.17439267,101350.0,101340.0,8.444e-05]
[1737422761132,0.53519267,101350.0,101340.0,8.444e-05]
[1737422761331,0.039521,101340.0,101310.0,0.400328]
[1737422761521,0.400321,101340.0,101310.0,0.400328]
[1737422762032,0.17440067,101330.0,101310.0,0.3608]
[1737422762233,0.49567667,101330.0,101300.0,0.4608]
[1737422762429,0.3608,101330.0,101310.0,0.3608]
[1737422762736,0.039529,101320.0,101300.0,0.500332]
[1737422763031,0.039529,101320.0,101300.0,0.4608]
[1737422763242,0.17440567,101320.0,101300.0,0.4608]
[1737422763429,0.17440567,101320.0,101300.0,0.1]
[1737422763738,0.039531,101310.0,101300.0,0.13089397]
[1737422764249,0.039537,101300.0,101280.0,0.3608]
[1737422764432,0.40033,101320.0,101290.0,0.400336]
[1737422764628,0.40033,101320.0,101300.0,0.3608]
[1737422764629,0.03953,101320.0,101300.0,0.3608]
[1737422764935,0.26182166,101350.0,101310.0,0.400328]
[1737422765141,0.039524,101330.0,101320.0,0.3608]
[1737422765330,0.49567667,101330.0,101310.0,0.3608]
[1737422765739,0.039527,101320.0,101300.0,0.039534]
[1737422766140,0.039527,101320.0,101300.0,0.400334]
[1737422766336,0.3608,101330.0,101310.0,0.039529]
[1737422766640,0.3608,101330.0,101310.0,0.3608]
[1737422766836,0.400324,101330.0,101310.0,0.3608]
[1737422767236,0.13487667,101320.0,101310.0,0.0247143]
[1737422767627,0.3608,101330.0,101310.0,0.0247143]
[1737422767833,0.039527,101320.0,101300.0,0.599332]
[1737422768442,0.039533,101310.0,101280.0,0.039539]
[1737422768639,0.400333,101310.0,101300.0,0.024714]
[1737422769140,0.400333,101310.0,101290.0,0.039539]
[1737422769342,0.400333,101310.0,101290.0,0.400339]
[1737422769544,0.039533,101310.0,101290.0,0.400339]
[1737422769739,0.49567667,101330.0,101300.0,0.3608]
[1737422769945,0.400324,101330.0,101310.0,0.039531]
[1737422770541,0.53520067,101330.0,101310.0,0.039531]
[1737422770739,0.53520067,101330.0,101300.0,0.3608]
[1737422770937,0.49567667,101330.0,101300.0,0.3608]
[1737422771136,0.13487667,101310.0,101280.0,0.3608]
[1737422771337,0.039536,101300.0,101280.0,0.40034]
[1737422771737,0.039539,101290.0,101280.0,0.03954]
[1737422771937,0.039539,101290.0,101270.0,0.60035431]
[1737422772138,0.039539,101290.0,101270.0,0.40045431]
[1737422772439,0.039531,101310.0,101280.0,0.3608]
[1737422772640,0.039531,101310.0,101300.0,0.039535]
[1737422772844,0.3608,101310.0,101290.0,0.039538]
[1737422773042,0.71387684,101330.0,101290.0,0.400338]
[1737422773245,0.400332,101310.0,101290.0,0.039538]
[1737422773839,0.3608,101300.0,101280.0,0.039542]
[1737422774043,0.400339,101290.0,101280.0,0.039542]
[1737422774255,0.039532,101310.0,101290.0,0.039537]
[1737422774441,0.400332,101310.0,101290.0,0.039537]
[1737422774635,0.49567667,101300.0,101270.0,0.03965231]
[1737422774841,0.400341,101290.0,101270.0,0.03965231]
[1737422775046,0.039543,101280.0,101270.0,0.03965231]
[1737422775242,0.400343,101280.0,101270.0,0.00010831]
[1737422775447,0.49567667,101300.0,101270.0,0.07055714]
[1737422775643,0.03954,101290.0,101270.0,0.39181014]
[1737422775850,0.5651,101310.0,101290.0,0.039539]
[1737422775851,0.400335,101310.0,101290.0,0.039539]
[1737422776348,0.3608,101310.0,101290.0,0.039539]
[1737422776543,0.039535,101300.0,101280.0,0.039542]
[1737422777041,0.400335,101300.0,101280.0,0.039542]
[1737422777241,0.039541,101290.0,101270.0,0.03965431]
[1737422777448,0.400341,101290.0,101270.0,0.03965431]
[1737422778243,0.400343,101280.0,101270.0,0.00010831]
[1737422778949,0.039543,101280.0,101270.0,0.03965531]
[1737422779340,0.3608,101290.0,101280.0,0.03954]
[1737422779541,0.03954,101290.0,101270.0,0.06437541]
[1737422779739,0.03954,101290.0,101280.0,0.039543]
[1737422779940,0.039532,101310.0,101300.0,0.039534]
[1737422780348,0.41377855,101320.0,101310.0,0.039531]
[1737422780550,0.244425,101330.0,101310.0,0.039531]
[1737422780751,0.3608,101320.0,101300.0,0.0247231]
[1737422780944,0.53520767,101310.0,101270.0,0.03965431]
[1737422781146,0.761143,101280.0,101270.0,0.03965431]
[1737422781547,0.761143,101280.0,101270.0,0.00010831]
[1737422781851,0.039555,101250.0,101230.0,0.039562]
[1737422782046,0.13487667,101240.0,101220.0,0.04104642]
[1737422782252,0.53523867,101240.0,101230.0,0.0309121]
[1737422782549,0.3608,101250.0,101230.0,0.0309121]
[1737422782759,0.40035,101270.0,101240.0,0.039557]
[1737422782941,0.49567667,101280.0,101250.0,0.3608]
[1737422783141,0.41376087,101280.0,101260.0,0.400347]
[1737422783349,8.565e-05,101270.0,101260.0,0.400347]
[1737422783741,8.565e-05,101270.0,101260.0,0.039547]
[1737422784143,0.3608,101300.0,101260.0,0.400347]
[1737422784349,0.039538,101300.0,101290.0,0.039539]
[1737422784548,0.41364416,101310.0,101300.0,0.039535]
[1737422784747,0.01331216,101310.0,101300.0,0.039535]
[1737422784948,0.441224,101330.0,101310.0,0.039531]
[1737422785250,0.3608,101320.0,101310.0,0.039531]
[1737422785548,0.69586734,101340.0,101310.0,0.3608]
[1737422785549,0.20019067,101340.0,101310.0,0.3608]
[1737422785751,0.20019067,101340.0,101330.0,0.039523]
[1737422786058,0.53519567,101340.0,101320.0,0.039526]
[1737422786241,0.400323,101330.0,101300.0,0.3608]
[1737422786552,0.53520367,101320.0,101300.0,0.039535]
[1737422786853,0.49567667,101320.0,101290.0,0.767]
[1737422787150,0.3608,101300.0,101280.0,0.1903]
[1737422787453,0.400332,101310.0,101290.0,0.039538]
[1737422787652,0.3608,101300.0,101290.0,0.039538]
[1737422788349,0.400324,101330.0,101310.0,0.039531]
[1737422788554,0.3608,101320.0,101310.0,0.039531]
[1737422788857,0.400324,101330.0,101310.0,0.039531]
[1737422789158,0.3608,101330.0,101320.0,0.039527]
[1737422789345,1.90128001,101340.0,101320.0,0.039527]
[1737422789547,0.40032,101340.0,101320.0,0.039527]
[1737422789750,0.039523,101330.0,101320.0,0.039527]
[1737422790053,0.400323,101330.0,101310.0,0.24753]
[1737422790259,0.400327,101320.0,101310.0,0.24753]
[1737422791058,0.3608,101320.0,101310.0,0.24753]
[1737422791756,0.039532,101310.0,101290.0,0.400336]
[1737422791953,0.53521167,101300.0,101290.0,0.05160916]
[1737422792159,0.53521167,101300.0,101280.0,0.039542]
[1737422792359,0.3608,101290.0,101280.0,0.039542]
[1737422792769,0.17441767,101290.0,101270.0,0.796246]
[1737422793057,0.039541,101290.0,101270.0,0.84786886]
[1737422793260,0.039541,101290.0,101270.0,0.796246]
[1737422793658,0.039541,101290.0,101280.0,0.3608]
[1737422793849,0.039543,101280.0,101260.0,7.125e-05]
[1737422794056,0.039547,101270.0,101260.0,7.125e-05]
[1737422794262,0.17487827,101300.0,101260.0,0.36087125]
[1737422794458,0.039539,101290.0,101270.0,0.039546]
[1737422794760,0.039544,101280.0,101260.0,0.40042225]
[1737422795757,0.400344,101280.0,101260.0,0.40042225]
[1737422796572,0.039544,101280.0,101260.0,0.40042225]
[1737422796772,0.039547,101270.0,101260.0,7.125e-05]
[1737422796955,0.039553,101260.0,101230.0,0.59177903]
[1737422797254,0.1932,101250.0,101240.0,0.3608]
[1737422797460,0.1932,101250.0,101240.0,0.400358]
[1737422797659,0.1932,101250.0,101230.0,0.23097903]
[1737422797850,0.1932,101250.0,101230.0,0.20570328]
[1737422797851,0.039558,101240.0,101230.0,0.20570328]
[1737422798456,1.039558,101240.0,101230.0,0.20570328]
[1737422798657,1.039558,101240.0,101230.0,0.56650328]
[1737422798965,0.039558,101240.0,101230.0,0.56650328]
[1737422799457,1.5624,101260.0,101230.0,0.60606528]
[1737422799655,0.039555,101250.0,101240.0,0.3608]
[1737422801252,0.039555,101250.0,101230.0,0.56650328]
[1737422801459,0.039558,101240.0,101230.0,0.20570328]
[1737422801654,0.039558,101240.0,101220.0,0.94546104]
[1737422801858,0.039558,101240.0,101220.0,0.94494104]
[1737422802050,0.79703276,101260.0,101210.0,0.3608]
[1737422802255,0.039565,101230.0,101210.0,0.400369]
[1737422802761,0.03957,101210.0,101200.0,0.4608]
[1737422803065,0.039563,101230.0,101210.0,0.03957]
[1737422803267,0.039563,101230.0,101220.0,0.3608]
[1737422804568,0.039567,101220.0,101210.0,0.3608]
[1737422805775,0.3608,101220.0,101200.0,0.4608]
[1737422805962,0.03957,101210.0,101200.0,0.4608]
[1737422806857,0.03957,101210.0,101200.0,0.08938141]
[1737422807061,0.40037,101210.0,101200.0,0.08938141]
[1737422807258,0.03957,101210.0,101200.0,0.08938141]
[1737422807471,0.40037,101210.0,101200.0,0.08938141]
[1737422807964,0.40037,101210.0,101200.0,0.08929576]
[1737422808166,0.76117,101210.0,101200.0,0.03810158]
[1737422808365,0.40037,101210.0,101190.0,4e-05]
[1737422808559,0.400374,101200.0,101190.0,4e-05]
[1737422808957,0.039574,101200.0,101190.0,4e-05]
[1737422809162,1.400374,101200.0,101190.0,4e-05]
[1737422809369,0.039574,101200.0,101190.0,0.36084]
[1737422809859,0.039574,101200.0,101170.0,0.3608]
[1737422809860,0.039582,101180.0,101170.0,0.3608]
[1737422810063,0.039582,101180.0,101160.0,0.65084014]
[1737422810064,0.039586,101170.0,101160.0,0.20232655]
[1737422810468,0.400386,101170.0,101160.0,0.20232655]
[1737422810770,0.83126204,101170.0,101150.0,0.3516713]
[1737422810971,0.40047508,101160.0,101150.0,0.28109409]
[1737422811275,0.039598,101140.0,101120.0,1.05844312]
[1737422811573,0.00011722,101130.0,101120.0,1.05792312]
[1737422811965,0.00011722,101130.0,101120.0,0.65421812]
[1737422811966,0.03971822,101130.0,101120.0,0.65421812]
[1737422812168,0.00011722,101130.0,101120.0,0.69382312]
[1737422812563,0.039601,101130.0,101120.0,0.29341812]
[1737422812862,0.00012475,101130.0,101120.0,0.69382312]
[1737422813076,0.00012475,101130.0,101120.0,0.87402312]
[1737422813267,0.01644301,101130.0,101120.0,1.06072312]
[1737422813869,0.01644301,101130.0,101120.0,1.02111812]
[1737422814075,0.05604401,101130.0,101120.0,0.65421812]
[1737422814282,0.05591926,101130.0,101120.0,0.29341812]
[1737422814473,0.3608,101160.0,101140.0,0.039596]
[1737422814673,0.03959,101160.0,101140.0,0.53127204]
[1737422815081,0.03959,101160.0,101150.0,0.3608]
[1737422815372,0.3608,101160.0,101120.0,0.63749716]
[1737422815571,0.3608,101160.0,101120.0,0.66527604]
[1737422815771,0.039599,101140.0,101120.0,0.70488004]
[1737422815971,8.106e-05,101130.0,101120.0,0.70488004]
[1737422816670,0.03968306,101130.0,101120.0,0.66527604]
[1737422816872,0.3608,101120.0,101080.0,0.00012331]
[1737422817073,0.039617,101090.0,101080.0,0.00012331]
[1737422817471,0.03969806,101090.0,101080.0,0.03108645]
[1737422817674,0.40049806,101090.0,101080.0,0.03108645]
[1737422817875,0.039617,101090.0,101080.0,0.03108645]
[1737422818071,0.400417,101090.0,101080.0,0.03108645]
[1737422818274,0.039617,101090.0,101080.0,0.16196249]
[1737422818574,0.039623,101080.0,101050.0,0.13087604]
[1737422818774,0.400423,101080.0,101050.0,0.13087604]
[1737422818970,0.3608,101080.0,101050.0,0.49167604]
[1737422819286,0.039613,101100.0,101070.0,0.17049904]
[1737422819474,0.3608,101100.0,101080.0,0.58542]
[1737422819779,7.104e-05,101090.0,101080.0,0.54289604]
[1737422819981,7.104e-05,101090.0,101080.0,0.3724]
[1737422820479,7.104e-05,101090.0,101080.0,0.412021]
[1737422820676,0.400417,101090.0,101080.0,0.3724]
[1737422820881,0.40050018,101090.0,101080.0,0.185]
[1737422821073,0.400417,101090.0,101080.0,0.185]
[1737422821381,1.400417,101090.0,101080.0,0.20977194]
[1737422821581,0.3608,101090.0,101080.0,0.34064798]
[1737422821781,9.783e-05,101090.0,101080.0,0.38026898]
[1737422822169,9.783e-05,101090.0,101080.0,0.34184949]
[1737422822377,0.400417,101090.0,101080.0,0.02597345]
[1737422822576,0.03969135,101090.0,101080.0,0.15684949]
[1737422822975,7.435e-05,101090.0,101080.0,0.15684949]
[1737422823178,7.435e-05,101090.0,101080.0,0.06559445]
[1737422823374,7.435e-05,101090.0,101080.0,0.02597345]
[1737422823375,0.36087435,101090.0,101080.0,0.02597345]
[1737422823579,0.400417,101090.0,101080.0,0.02597345]
[1737422823981,7.895e-05,101090.0,101080.0,0.02597345]
[1737422824182,7.895e-05,101090.0,101080.0,0.06559445]
[1737422824383,7.895e-05,101090.0,101080.0,0.55727049]
[1737422824885,7.895e-05,101090.0,101080.0,0.53249855]
[1737422825086,9.5e-07,101090.0,101080.0,0.63142519]
[1737422825277,0.08576077,101130.0,101080.0,0.93142519]
[1737422825583,0.11434769,101140.0,101130.0,0.039601]
[1737422825978,0.11434769,101140.0,101120.0,0.231404]
[1737422826289,0.11434769,101140.0,101130.0,0.039601]
[1737422826479,0.51484915,101140.0,101120.0,0.231405]
[1737422826681,0.36088178,101130.0,101110.0,0.1762]
[1737422826883,0.400407,101120.0,101100.0,0.039612]
[1737422827182,0.00010669,101110.0,101100.0,0.039613]
[1737422827382,0.00010669,101110.0,101100.0,0.06437828]
[1737422827975,0.00010669,101110.0,101100.0,0.039613]
[1737422828177,0.3608,101110.0,101080.0,0.00120151]
[1737422828484,0.400415,101100.0,101080.0,0.04082251]
[1737422828683,0.00010568,101090.0,101080.0,0.02596896]
[1737422828884,0.00010568,101090.0,101080.0,0.06558996]
[1737422829089,0.039617,101090.0,101080.0,0.02596896]
[1737422829479,0.03971384,101090.0,101080.0,0.02596896]
[1737422829991,9.684e-05,101090.0,101080.0,0.196466]
[1737422830489,0.36089684,101090.0,101080.0,0.196466]
[1737422831088,0.36089684,101090.0,101080.0,0.02596896]
[1737422831383,0.40051384,101090.0,101080.0,0.02596896]
[1737422831574,0.40051384,101090.0,101080.0,0.42638996]
[1737422831575,9.684e-05,101090.0,101080.0,0.42638996]
[1737422831980,9.684e-05,101090.0,101080.0,0.06558996]
[1737422832386,0.36089684,101090.0,101080.0,0.02596896]
[1737422832689,0.36089684,101090.0,101080.0,0.06558996]
[1737422832690,9.684e-05,101090.0,101080.0,0.06558996]
[1737422834891,0.03971384,101090.0,101080.0,0.02596896]
[1737422835090,9.684e-05,101090.0,101080.0,0.06558996]
[1737422835483,9.684e-05,101090.0,101080.0,0.42638996]
[1737422835676,9.684e-05,101090.0,101080.0,0.06558996]
[1737422836895,5.3608,101100.0,101080.0,0.06558996]
[1737422837086,9.642e-05,101090.0,101080.0,0.06558996]
[1737422838089,9.642e-05,101090.0,101080.0,0.42638996]
[1737422838691,4.87687942,101100.0,101080.0,0.42638996]
[1737422838896,4.87687942,101100.0,101090.0,0.53129304]
[1737422839092,1.93556101,101100.0,101090.0,0.53129304]
[1737422839293,1.34696101,101100.0,101090.0,0.88272435]
[1737422839493,1.34696101,101100.0,101090.0,0.58272435]
[1737422839890,1.34696101,101100.0,101090.0,0.400417]
[1737422840593,1.34696101,101100.0,101090.0,0.761217]
[1737422840991,1.34696101,101100.0,101090.0,0.81271841]
[1737422841201,1.34696101,101100.0,101090.0,1.33546686]
[1737422841202,0.53352701,101100.0,101090.0,1.33546686]
[1737422841502,0.47514769,101140.0,101130.0,0.039601]
[1737422841898,0.11434769,101140.0,101130.0,0.53127704]
[1737422842404,0.11434769,101140.0,101130.0,0.58285747]
[1737422842612,0.11434769,101140.0,101130.0,0.77755747]
[1737422842802,0.11434769,101140.0,101130.0,1.07755747]
[1737422843001,0.14293461,101150.0,101140.0,0.039598]
[1737422843203,0.14293461,101150.0,101140.0,0.45197843]
[1737422843517,0.14293461,101150.0,101140.0,0.75197843]
[1737422843805,0.14293461,101150.0,101140.0,0.45197843]
[1737422844608,0.14293461,101150.0,101140.0,0.75197843]
[1737422844808,0.05470148,101180.0,101150.0,0.039591]
[1737422844999,0.03959,101160.0,101150.0,0.41238043]
[1737422845201,0.039597,101150.0,101130.0,0.49167604]
[1737422845407,0.5558,101160.0,101130.0,0.18245654]
[1737422845612,0.3608,101170.0,101140.0,0.3608]
[1737422845806,0.3608,101160.0,101150.0,0.13087604]
[1737422846104,0.3608,101160.0,101140.0,0.400394]
[1737422846105,0.400391,101160.0,101140.0,0.039594]
[1737422846303,0.3608,101150.0,101130.0,0.53127704]
[1737422846503,0.5503,101170.0,101130.0,0.54324463]
[1737422846707,0.400387,101170.0,101150.0,0.13087604]
[1737422846908,0.3608,101170.0,101160.0,0.03959]
[1737422847608,0.01511848,101180.0,101160.0,0.3608]
[1737422847809,0.74921361,101190.0,101170.0,0.039586]
[1737422848004,0.3608,101180.0,101170.0,0.039586]
[1737422848309,0.400383,101180.0,101160.0,0.03959]
[1737422848611,0.14293461,101190.0,101180.0,0.039582]
[1737422849010,0.17152154,101190.0,101180.0,1.061182]
[1737422849210,0.1,101200.0,101180.0,1.16002553]
[1737422849410,0.22869538,101220.0,101190.0,0.67847604]
[1737422849616,0.22869538,101220.0,101210.0,0.53124604]
[1737422850009,0.22869538,101220.0,101210.0,0.17044604]
[1737422850207,0.22869538,101220.0,101210.0,0.03957]
[1737422850412,0.22869538,101220.0,101210.0,0.89204604]
[1737422850612,0.25728231,101230.0,101220.0,0.039566]
[1737422850813,0.15239531,101230.0,101220.0,0.400366]
[1737422851015,0.15239531,101230.0,101220.0,0.700366]
[1737422851210,3.1e-07,101230.0,101220.0,0.79916558]
[1737422851411,3.1e-07,101230.0,101220.0,0.49916558]
[1737422851611,3.1e-07,101230.0,101220.0,0.400366]
[1737422851913,3.1e-07,101230.0,101220.0,0.039566]
[1737422852311,3.1e-07,101230.0,101220.0,0.400366]
[1737422852710,3.1e-07,101230.0,101220.0,0.039566]
[1737422853212,0.1922,101250.0,101240.0,0.039558]
[1737422853413,0.3953468,101270.0,101240.0,0.3608]
[1737422853616,0.7406,101270.0,101260.0,0.039551]
[1737422853808,0.231743,101280.0,101260.0,0.039551]
[1737422854112,0.1922,101280.0,101270.0,0.039547]
[1737422854416,0.1922,101280.0,101270.0,0.400347]
[1737422854600,0.1922,101280.0,101270.0,0.039547]
[1737422855306,0.765339,101290.0,101270.0,0.039547]
[1737422855307,0.7258,101290.0,101270.0,0.039547]
[1737422855509,0.5548,101290.0,101270.0,0.17042304]
[1737422855703,0.194,101290.0,101280.0,0.400343]
[1737422855906,0.1,101300.0,101290.0,0.039539]
[1737422856119,0.1,101300.0,101290.0,0.53121504]
[1737422856416,0.1,101300.0,101290.0,0.83121504]
[1737422856606,0.1,101300.0,101290.0,0.62995121]
[1737422856806,1e-06,101300.0,101290.0,0.79907517]
[1737422857012,0.7394,101350.0,101290.0,0.79907517]
[1737422857225,0.3786,101350.0,101330.0,0.17039904]
[1737422857514,0.194,101360.0,101330.0,0.13087604]
[1737422857712,0.194,101360.0,101350.0,0.17039204]
[1737422858515,0.5428,101390.0,101350.0,0.49167604]
[1737422858712,0.182,101390.0,101380.0,0.039504]
[1737422859015,0.3608,101390.0,101360.0,0.039509]
[1737422859228,0.3608,101380.0,101340.0,0.400316]
[1737422859404,0.400309,101370.0,101340.0,0.039516]
[1737422859905,0.958004,101380.0,101360.0,0.3608]
[1737422860110,0.9185,101380.0,101350.0,0.53118804]
[1737422860312,0.3757,101380.0,101370.0,0.13087604]
[1737422860511,0.1877,101380.0,101370.0,0.17038404]
[1737422860712,0.1877,101380.0,101370.0,0.53118404]
[1737422861310,0.41429212,101400.0,101370.0,0.039508]
[1737422861515,0.3608,101390.0,101370.0,0.17038404]
[1737422862411,0.60089212,101400.0,101370.0,0.17038404]
[1737422863214,0.4003,101390.0,101360.0,0.13087604]
[1737422863407,0.3608,101380.0,101360.0,0.13087604]
[1737422863611,0.3608,101380.0,101360.0,0.17038804]
[1737422863824,0.400304,101380.0,101340.0,0.17039404]
[1737422864118,0.3608,101370.0,101340.0,0.13087604]
[1737422864419,0.586512,101360.0,101340.0,0.13087604]
[1737422864621,0.225712,101360.0,101340.0,0.13087604]
[1737422865009,0.225712,101360.0,101330.0,0.04100213]
[1737422865214,0.3608,101340.0,101330.0,0.00148013]
[1737422865812,0.400319,101340.0,101320.0,0.3608]
[1737422866119,0.225714,101360.0,101320.0,0.17040004]
[1737422866308,0.3608,101340.0,101320.0,0.53120004]
[1737422866712,0.03952,101340.0,101310.0,0.40045765]
[1737422867118,0.03952,101340.0,101320.0,0.13087604]
[1737422867315,0.3608,101330.0,101310.0,0.03965765]
[1737422867514,0.03952,101340.0,101310.0,0.03965765]
[1737422867714,0.24008713,101360.0,101320.0,0.53120004]
[1737422867915,0.24008713,101360.0,101340.0,0.17039504]
[1737422868121,0.24008713,101360.0,101340.0,0.039518]
[1737422868923,0.20057313,101360.0,101330.0,0.3608]
[1737422869124,0.1862,101360.0,101340.0,0.49167604]
[1737422869426,0.039505,101380.0,101360.0,0.039512]
[1737422869615,0.1851,101370.0,101360.0,0.039512]
[1737422870515,0.5459,101370.0,101340.0,0.53119204]
[1737422870824,0.3608,101360.0,101330.0,0.40180019]
[1737422871025,0.586417,101350.0,101330.0,0.04100019]
[1737422871514,0.3608,101340.0,101330.0,0.00148019]
[1737422871726,0.587057,101350.0,101330.0,0.00148019]
[1737422871911,0.039519,101340.0,101330.0,0.00148019]
[1737422872117,0.400319,101340.0,101320.0,0.17040304]
[1737422872320,0.039519,101340.0,101320.0,0.17040304]
[1737422872514,0.1861,101350.0,101320.0,0.49167604]
[1737422872724,0.1851,101370.0,101340.0,0.49167604]
[1737422872921,0.224609,101370.0,101350.0,0.039515]
[1737422873124,0.1911,101380.0,101360.0,0.13087604]
[1737422873326,0.1911,101380.0,101370.0,0.039508]
[1737422873722,0.1801,101400.0,101370.0,0.3608]
[1737422873930,0.1801,101400.0,101390.0,0.0395]
[1737422874322,0.5409,101400.0,101380.0,0.13087604]
[1737422874626,0.3608,101390.0,101370.0,0.400306]
[1737422875231,0.580399,101400.0,101370.0,0.400306]
[1737422875232,0.219599,101400.0,101380.0,0.039503]
[1737422875526,0.1913,101390.0,101380.0,0.039503]
[1737422876116,0.5916,101390.0,101370.0,0.039506]
[1737422876323,0.5437,101380.0,101370.0,0.039506]
[1737422876525,0.1829,101380.0,101370.0,0.039506]
[1737422876723,0.1913,101390.0,101380.0,0.039504]
[1737422876926,0.039489,101420.0,101380.0,0.53118004]